fUST/lending_fUST_20251216
["ID","MTS","AMOUNT","RATE_DAILY","PERIOD"]
[398592279,1765857138288,-2349.49,0.00015068,2]
[398592280,1765857138298,-707.6,0.00015068,2]
[398592281,1765857138308,-2196.03,0.00015068,2]
[398592282,1765857138317,-1420.86,0.00015068,2]
[398592283,1765857138327,-1354.29,0.00015068,2]
[398592284,1765857138337,-1566.76,0.00015068,2]
[398592285,1765857138346,-500.0,0.00015068,2]
[398592286,1765857138355,-1789.22,0.00015068,2]
[398592287,1765857138365,-500.0,0.00015068,2]
[398592288,1765857138374,-975.67,0.00015068,2]
[398592289,1765857138384,-997.09,0.00015068,2]
[398592290,1765857138394,-1344.17,0.00015068,2]
[398592291,1765857138403,-600.75,0.00015068,2]
[398592292,1765857138413,-4842.15,0.00015068,2]
[398592293,1765857138421,-938.39,0.00015068,2]
[398592294,1765857138430,-513.63,0.00015068,2]
[398592295,1765857138440,-1372.69,0.00015068,2]
[398592296,1765857138449,-1192.19,0.00015068,2]
[398592297,1765857138460,-825.5,0.00015068,2]
[398592298,1765857138469,-500.0,0.00015068,2]
[398592299,1765857138479,-2748.55,0.00015068,2]
[398592300,1765857138488,-2322.09,0.00015068,2]
[398592301,1765857138497,-708.11,0.00015068,2]
[398592302,1765857138507,-2125.4,0.00015068,2]
[398592303,1765857138516,-6830.61,0.00015068,2]
[398592304,1765857138525,-500.0,0.00015068,2]
[398592305,1765857138534,-8377.94,0.00015068,2]
[398592306,1765857138544,-2121.87,0.00015068,2]
[398592307,1765857138553,-500.0,0.00015068,2]
[398592308,1765857138562,-858.84,0.00015068,2]
[398592309,1765857138571,-945.29,0.00015068,2]
[398592310,1765857138581,-1092.05,0.00015068,2]
[398592311,1765857138590,-580.26,0.00015068,2]
[398592312,1765857138599,-500.0,0.00015068,2]
[398592313,1765857138608,-2445.72,0.00015068,2]
[398592314,1765857138617,-3903.36,0.00015068,2]
[398592315,1765857138627,-537.08,0.00015068,2]
[398592316,1765857138636,-618.36,0.00015068,2]
[398592317,1765857138645,-4243.55,0.00015068,2]
[398592318,1765857138655,-1422.62,0.00015068,2]
[398592319,1765857138664,-800.38,0.00015068,2]
[398592320,1765857138673,-1202.09,0.00015068,2]
[398592321,1765857138682,-799.6,0.00015068,2]
[398592322,1765857138692,-520.25,0.00015068,2]
[398592323,1765857138701,-14584.18,0.00015068,2]
[398592324,1765857138710,-2341.35,0.00015068,2]
[398592325,1765857138719,-500.0,0.00015068,2]
[398592326,1765857138729,-614.63,0.00015068,2]
[398592327,1765857138739,-3921.7,0.00015068,2]
[398592328,1765857138748,-2042.99,0.00015068,2]
[398592329,1765857138757,-500.0,0.00015068,2]
[398592330,1765857138767,-2154.94,0.00015068,2]
[398592331,1765857138776,-1164.37,0.00015068,2]
[398592332,1765857138785,-1452.17,0.00015068,2]
[398592333,1765857138794,-3354.89,0.00015068,2]
[398592334,1765857138804,-500.0,0.00015068,2]
[398592335,1765857138813,-885.63,0.00015068,2]
[398592336,1765857138822,-583.17,0.00015068,2]
[398592337,1765857138832,-934.17,0.00015068,2]
[398592338,1765857138842,-500.0,0.00015068,2]
[398592339,1765857138851,-2662.12,0.00015068,2]
[398592340,1765857138860,-940.07,0.00015068,2]
[398592341,1765857138869,-2691.53,0.00015068,2]
[398592342,1765857138879,-500.0,0.00015068,2]
[398592343,1765857138888,-500.0,0.00015068,2]
[398592344,1765857138897,-1389.33,0.00015068,2]
[398592345,1765857138906,-947.29,0.00015068,2]
[398592346,1765857138915,-479.3637297,0.00015068,2]
[398592347,1765857138924,-1434.18,0.00015068,2]
[398592348,1765857138934,-607.29,0.00015068,2]
[398592349,1765857138943,-500.0,0.00015068,2]
[398592350,1765857138953,-3493.92,0.00015068,2]
[398592351,1765857138962,-500.0,0.00015068,2]
[398592352,1765857138971,-1734.78,0.00015068,2]
[398592353,1765857138980,-529.53,0.00015068,2]
[398592354,1765857138989,-500.0,0.00015068,2]
[398592355,1765857138998,-1497.62,0.00015068,2]
[398592356,1765857139008,-1890.34,0.00015068,2]
[398592357,1765857139017,-1321.15,0.00015068,2]
[398592358,1765857139026,-627.84,0.00015068,2]
[398592359,1765857139035,-1724.14,0.00015068,2]
[398592360,1765857139045,-1136.33,0.00015068,2]
[398592361,1765857139055,-2584.7,0.00015068,2]
[398592362,1765857139064,-906.3,0.00015068,2]
[398592363,1765857139074,-523.47,0.00015068,2]
[398592364,1765857139084,-500.0,0.00015068,2]
[398592365,1765857139165,-1103.9,0.00015068,2]
[398592366,1765857139174,-860.33,0.00015068,2]
[398592367,1765857139184,-526.2,0.00015068,2]
[398592368,1765857139193,-625.36,0.00015068,2]
[398592369,1765857139202,-171.9810006,0.00015068,2]
[398592370,1765857139211,-3387.17,0.00015068,2]
[398592371,1765857139220,-838.05,0.00015068,2]
[398592372,1765857139230,-717.42,0.00015068,2]
[398592373,1765857139240,-1435.24,0.00015068,2]
[398592374,1765857139250,-500.0,0.00015068,2]
[398592375,1765857139259,-11122.08,0.00015068,2]
[398592376,1765857139268,-645.68,0.00015068,2]
[398592377,1765857139277,-22080.53,0.00015068,2]
[398592378,1765857139286,-3719.53,0.00015068,2]
[398592379,1765857139295,-835.99,0.00015068,2]
[398592380,1765857139304,-1808.12,0.00015068,2]
[398592381,1765857139313,-500.0,0.00015068,2]
[398592382,1765857139324,-8246.11,0.00015068,2]
[398592383,1765857139333,-1665.52,0.00015068,2]
[398592384,1765857139342,-505.05,0.00015068,2]
[398592385,1765857139351,-5019.38,0.00015068,2]
[398592386,1765857139360,-980.38,0.00015068,2]
[398592387,1765857139369,-2863.98,0.00015068,2]
[398592388,1765857139378,-688.63,0.00015068,2]
[398592389,1765857139388,-2333.27,0.00015068,2]
[398592390,1765857139397,-884.98,0.00015068,2]
[398592391,1765857139406,-2011.13,0.00015068,2]
[398592392,1765857139415,-561.14,0.00015068,2]
[398592393,1765857139424,-1161.7,0.00015068,2]
[398592394,1765857139434,-5555.9,0.00015068,2]
[398592395,1765857139442,-1243.71,0.00015068,2]
[398592396,1765857139452,-35354.14,0.00015068,2]
[398592397,1765857139461,-9588.87,0.00015068,2]
[398592398,1765857139471,-1419.14,0.00015068,2]
[398592399,1765857139480,-1172.55,0.00015068,2]
[398592400,1765857139489,-500.0,0.00015068,2]
[398592401,1765857139498,-2089.03,0.00015068,2]
[398592402,1765857139508,-500.0,0.00015068,2]
[398592403,1765857139517,-3963.15,0.00015068,2]
[398592404,1765857139526,-2257.39,0.00015068,2]
[398592405,1765857139536,-1097.79,0.00015068,2]
[398592406,1765857139545,-1991.38,0.00015068,2]
[398592407,1765857139554,-841.22,0.00015068,2]
[398592408,1765857139563,-500.0,0.00015068,2]
[398592409,1765857139574,-535.52,0.00015068,2]
[398592410,1765857139583,-500.0,0.00015068,2]
[398592411,1765857139593,-800.38,0.00015068,2]
[398592412,1765857139602,-1431.03,0.00015068,2]
[398592413,1765857139611,-8351.41,0.00015068,2]
[398592414,1765857139620,-1423.76,0.00015068,2]
[398592415,1765857139629,-896.79,0.00015068,2]
[398592416,1765857139638,-1140.27,0.00015068,2]
[398592417,1765857139647,-4075.24,0.00015068,2]
[398592418,1765857139657,-914.19,0.00015068,2]
[398592419,1765857139666,-500.0,0.00015068,2]
[398592420,1765857139675,-1445.43,0.00015068,2]
[398592421,1765857139684,-500.0,0.00015068,2]
[398592422,1765857139693,-940.6,0.00015068,2]
[398592423,1765857139702,-1956.75,0.00015068,2]
[398592424,1765857139711,-500.0,0.00015068,2]
[398592425,1765857139719,-3247.84,0.00015068,2]
[398592426,1765857139729,-1069.42,0.00015068,2]
[398592427,1765857139738,-2026.56,0.00015068,2]
[398592428,1765857139747,-1628.96,0.00015068,2]
[398592429,1765857139756,-1954.46,0.00015068,2]
[398592430,1765857139765,-1842.29,0.00015068,2]
[398592431,1765857139774,-1249.58,0.00015068,2]
[398592432,1765857139784,-5203.28,0.00015068,2]
[398592433,1765857139793,-2367.41,0.00015068,2]
[398592434,1765857139802,-3863.02,0.00015068,2]
[398592435,1765857139811,-2306.5,0.00015068,2]
[398592436,1765857139821,-5137.41,0.00015068,2]
[398592437,1765857139831,-674.15,0.00015068,2]
[398592438,1765857139840,-560.29,0.00015068,2]
[398592439,1765857139849,-500.0,0.00015068,2]
[398592440,1765857139859,-2457.45,0.00015068,2]
[398592441,1765857139868,-1620.3,0.00015068,2]
[398592442,1765857139877,-935.88,0.00015068,2]
[398592443,1765857139887,-2175.69,0.00015068,2]
[398592444,1765857139897,-500.0,0.00015068,2]
[398592445,1765857139905,-831.4,0.00015068,2]
[398592446,1765857139915,-537.44,0.00015068,2]
[398592447,1765857139924,-194.16249289,0.00015068,30]
[398592448,1765857139934,-231.150612,0.00015068,2]
[398592449,1765857139943,-803.73646877,0.00015068,2]
[398592450,1765857139952,-160.0,0.00015089,5]
[398592451,1765857139961,-152.08,0.000151,2]
[398592452,1765857139974,-194.16249289,0.00015288,30]
[398592453,1765857139983,-966.59929246,0.00015316,2]
[398592454,1765857139993,-3839.6,0.00015342,2]
[398592455,1765857140002,-500.0,0.00015342,2]
[398592456,1765857140011,-500.0,0.00015342,2]
[398592457,1765857140020,-500.0,0.00015342,2]
[398592458,1765857140030,-609.81,0.00015342,2]
[398592459,1765857140039,-600.92,0.00015342,2]
[398592460,1765857140049,-500.26,0.00015342,2]
[398592461,1765857140058,-635.26,0.00015342,2]
[398592462,1765857140068,-2131.63,0.00015342,2]
[398592463,1765857140077,-1239.05,0.00015342,2]
[398592464,1765857140087,-832.5,0.00015342,2]
[398592465,1765857140096,-500.0,0.00015342,2]
[398592466,1765857140106,-1281.42,0.00015342,2]
[398592467,1765857140116,-706.65,0.00015342,2]
[398592468,1765857140125,-500.0,0.00015342,2]
[398592469,1765857140135,-500.0,0.00015342,2]
[398592470,1765857140144,-970.13,0.00015342,2]
[398592471,1765857140157,-500.0,0.00015342,2]
[398592472,1765857140167,-500.0,0.00015342,2]
[398592473,1765857140176,-905.09,0.00015342,2]
[398592474,1765857140185,-500.0,0.00015342,2]
[398592475,1765857140195,-1438.77,0.00015342,2]
[398592476,1765857140204,-500.0,0.00015342,2]
[398592477,1765857140214,-922.31,0.00015342,2]
[398592478,1765857140223,-500.81,0.00015342,2]
[398592479,1765857140234,-867.63,0.00015342,2]
[398592480,1765857140243,-808.83,0.00015342,2]
[398592481,1765857140252,-500.0,0.00015342,2]
[398592482,1765857140262,-772.63,0.00015342,2]
[398592483,1765857140272,-500.0,0.00015342,2]
[398592484,1765857140281,-724.68,0.00015342,2]
[398592485,1765857140291,-728.64,0.00015342,2]
[398592486,1765857140301,-788.39,0.00015342,2]
[398592487,1765857140310,-713.19,0.00015342,2]
[398592488,1765857140320,-711.19,0.00015342,2]
[398592489,1765857140329,-1903.91,0.00015342,2]
[398592490,1765857140339,-1163.59,0.00015342,2]
[398592491,1765857140348,-541.86,0.00015342,2]
[398592492,1765857140358,-873.56,0.00015342,2]
[398592493,1765857140367,-500.0,0.00015342,2]
[398592494,1765857140377,-500.0,0.00015342,2]
[398592495,1765857140387,-623.95,0.00015342,2]
[398592496,1765857140396,-500.0,0.00015342,2]
[398592497,1765857140405,-500.0,0.00015342,2]
[398592498,1765857140415,-939.88,0.00015342,2]
[398592499,1765857140424,-514.0,0.00015342,2]
[398592500,1765857140433,-500.0,0.00015342,2]
[398592501,1765857140443,-155.66152341,0.00015342,2]
[398592502,1765857140452,-1404.96,0.00015342,2]
[398592503,1765857140463,-2624.19,0.00015342,2]
[398592504,1765857140473,-1165.8,0.00015342,2]
[398592505,1765857140482,-782.31,0.00015342,2]
[398592506,1765857140491,-500.0,0.00015342,2]
[398592507,1765857140501,-500.0,0.00015342,2]
[398592508,1765857140511,-500.0,0.00015342,2]
[398592509,1765857140520,-2047.92,0.00015342,2]
[398592510,1765857140530,-204.37707619,0.00015342,2]
[398592511,1765857140540,-1419.58,0.00015342,2]
[398592512,1765857140549,-2858.67,0.00015342,2]
[398592513,1765857140559,-915.74,0.00015342,2]
[398592514,1765857140568,-561.34,0.00015342,2]
[398592515,1765857140578,-862.14,0.00015342,2]
[398592516,1765857140588,-728.64,0.00015342,2]
[398592517,1765857140597,-1196.22,0.00015342,2]
[398592518,1765857140607,-764.95,0.00015342,2]
[398592519,1765857140616,-1723.48,0.00015342,2]
[398592520,1765857140625,-795.49,0.00015342,2]
[398592521,1765857140635,-579.03,0.00015342,2]
[398592522,1765857140644,-527.94,0.00015342,2]
[398592523,1765857140654,-613.42,0.00015342,2]
[398592524,1765857140663,-852.9,0.00015342,2]
[398592525,1765857140673,-1741.83,0.00015342,2]
[398592526,1765857140682,-579.96,0.00015342,2]
[398592527,1765857140692,-500.0,0.00015342,2]
[398592528,1765857140701,-882.7,0.00015342,2]
[398592529,1765857140711,-909.29,0.00015342,2]
[398592530,1765857140720,-500.0,0.00015342,2]
[398592531,1765857140730,-1389.03,0.00015342,2]
[398592532,1765857140739,-652.64,0.00015342,2]
[398592533,1765857140749,-863.06,0.00015342,2]
[398592534,1765857140758,-946.95,0.00015342,2]
[398592535,1765857140768,-500.0,0.00015342,2]
[398592536,1765857140778,-752.63,0.00015342,2]
[398592537,1765857140788,-563.93654647,0.00015342,2]
[398592538,1765857140798,-500.0,0.00015342,2]
[398592539,1765857140807,-500.0,0.00015342,2]
[398592540,1765857140816,-1824.47,0.00015342,2]
[398592541,1765857140826,-631.43,0.00015342,2]
[398592542,1765857140836,-548.39,0.00015342,2]
[398592543,1765857140846,-5069.0,0.00015342,2]
[398592544,1765857140856,-869.38,0.00015342,2]
[398592545,1765857140867,-500.0,0.00015342,2]
[398592546,1765857140876,-1418.86,0.00015342,2]
[398592547,1765857140886,-1398.62,0.00015342,2]
[398592548,1765857140896,-2490.08,0.00015342,2]
[398592549,1765857140906,-500.0,0.00015342,2]
[398592550,1765857140916,-886.06,0.00015342,2]
[398592551,1765857140926,-599.05260956,0.00015342,2]
[398592552,1765857140935,-886.48,0.00015342,2]
[398592553,1765857140945,-528.18,0.00015342,2]
[398592554,1765857140955,-1144.03,0.00015342,2]
[398592555,1765857140965,-1839.21,0.00015342,2]
[398592556,1765857140975,-500.0,0.00015342,2]
[398592557,1765857140984,-760.81,0.00015342,2]
[398592558,1765857140994,-578.54,0.00015342,2]
[398592559,1765857141004,-525.22,0.00015342,2]
[398592560,1765857141015,-1799.91,0.00015342,2]
[398592561,1765857141024,-500.0,0.00015342,2]
[398592562,1765857141034,-1395.69,0.00015342,2]
[398592563,1765857141044,-390.16304985,0.00015342,2]
[398592564,1765857141054,-628.33623814,0.00015342,2]
[398592565,1765857141064,-2489.6,0.00015342,2]
[398592566,1765857141074,-598.46587017,0.00015342,2]
[398592567,1765857141085,-1851.38,0.00015342,2]
[398592568,1765857141095,-3564.58,0.00015342,2]
[398592569,1765857141104,-1892.77,0.00015342,2]
[398592570,1765857141114,-554.05,0.00015342,2]
[398592571,1765857141124,-625.7,0.00015342,2]
[398592572,1765857141134,-614.05,0.00015342,2]
[398592573,1765857141144,-1268.17,0.00015342,2]
[398592574,1765857141158,-2548.3,0.00015342,2]
[398592575,1765857141168,-964.39,0.00015342,2]
[398592576,1765857141178,-500.0,0.00015342,2]
[398592577,1765857141187,-2757.29,0.00015342,2]
[398592578,1765857141198,-1379.13,0.00015342,2]
[398592579,1765857141208,-921.12,0.00015342,2]
[398592580,1765857141218,-500.0,0.00015342,2]
[398592581,1765857141227,-1281.57,0.00015342,2]
[398592582,1765857141238,-500.0,0.00015342,2]
[398592583,1765857141248,-500.0,0.00015342,2]
[398592584,1765857141257,-591.0,0.00015342,2]
[398592585,1765857141267,-500.0,0.00015342,2]
[398592586,1765857141277,-621.24,0.00015342,2]
[398592587,1765857141287,-858.92,0.00015342,2]
[398592588,1765857141297,-604.25,0.00015342,2]
[398592589,1765857141306,-601.93,0.00015342,2]
[398592590,1765857141317,-1724.77,0.00015342,2]
[398592591,1765857141332,-1883.58,0.00015342,2]
[398592592,1765857141342,-500.0,0.00015342,2]
[398592593,1765857141352,-897.25,0.00015342,2]
[398592594,1765857141362,-1210.79,0.00015342,2]
[398592595,1765857141371,-1351.77,0.00015342,2]
[398592596,1765857141381,-773.94,0.00015342,2]
[398592597,1765857141390,-724.47,0.00015342,2]
[398592598,1765857141399,-1559.66,0.00015342,2]
[398592599,1765857141409,-901.9,0.00015342,2]
[398592600,1765857141423,-500.0,0.00015342,2]
[398592601,1765857141433,-658.19,0.00015342,2]
[398592602,1765857141442,-1664.36,0.00015342,2]
[398592603,1765857141452,-540.02,0.00015342,2]
[398592604,1765857141462,-1280.6,0.00015342,2]
[398592605,1765857141472,-1404.56,0.00015342,2]
[398592606,1765857141482,-577.11,0.00015342,2]
[398592607,1765857141491,-517.8,0.00015342,2]
[398592608,1765857141500,-851.34,0.00015342,2]
[398592609,1765857141510,-500.0,0.00015342,2]
[398592610,1765857141520,-6779.98,0.00015342,2]
[398592611,1765857141529,-500.0,0.00015342,2]
[398592612,1765857141538,-500.0,0.00015342,2]
[398592613,1765857141548,-1225.41,0.00015342,2]
[398592614,1765857141558,-500.0,0.00015342,2]
[398592615,1765857141567,-879.62,0.00015342,2]
[398592616,1765857141577,-849.34,0.00015342,2]
[398592617,1765857141587,-4220.16,0.00015342,2]
[398592618,1765857141597,-249.08533124,0.00015342,2]
[398592619,1765857141607,-2541.48,0.00015342,2]
[398592620,1765857141617,-618.0,0.00015342,2]
[398592621,1765857141627,-1330.94,0.00015342,2]
[398592622,1765857141637,-502.75,0.00015342,2]
[398592623,1765857141646,-1721.89,0.00015342,2]
[398592624,1765857141656,-1471.73,0.00015342,2]
[398592625,1765857141666,-1794.66,0.00015342,2]
[398592626,1765857141676,-919.0,0.00015342,2]
[398592627,1765857141685,-1483.78,0.00015342,2]
[398592628,1765857141694,-1436.2,0.00015342,2]
[398592629,1765857141704,-500.0,0.00015342,2]
[398592630,1765857141714,-9283.55,0.00015342,2]
[398592631,1765857141724,-1109.0,0.00015342,2]
[398592632,1765857141733,-930.78,0.00015342,2]
[398592633,1765857141743,-500.0,0.00015342,2]
[398592634,1765857141752,-700.85,0.00015342,2]
[398592635,1765857141762,-2453.55,0.00015342,2]
[398592636,1765857141772,-536.25,0.00015342,2]
[398592637,1765857141782,-500.0,0.00015342,2]
[398592638,1765857141792,-990.55,0.00015342,2]
[398592639,1765857141801,-2349.49,0.00015342,2]
[398592640,1765857141811,-707.6,0.00015342,2]
[398592641,1765857141821,-2196.03,0.00015342,2]
[398592642,1765857141831,-1420.86,0.00015342,2]
[398592643,1765857141841,-1354.29,0.00015342,2]
[398592644,1765857141851,-1566.76,0.00015342,2]
[398592645,1765857141861,-500.0,0.00015342,2]
[398592646,1765857141871,-1789.22,0.00015342,2]
[398592647,1765857141880,-500.0,0.00015342,2]
[398592648,1765857141891,-975.67,0.00015342,2]
[398592649,1765857141901,-997.09,0.00015342,2]
[398592650,1765857141910,-1344.17,0.00015342,2]
[398592651,1765857141920,-600.75,0.00015342,2]
[398592652,1765857141930,-4842.15,0.00015342,2]
[398592653,1765857141940,-938.39,0.00015342,2]
[398592654,1765857141949,-513.63,0.00015342,2]
[398592655,1765857141959,-1372.69,0.00015342,2]
[398592656,1765857141968,-1192.19,0.00015342,2]
[398592657,1765857141978,-825.5,0.00015342,2]
[398592658,1765857141988,-500.0,0.00015342,2]
[398592659,1765857141997,-2748.55,0.00015342,2]
[398592660,1765857142007,-2322.09,0.00015342,2]
[398592661,1765857142017,-708.11,0.00015342,2]
[398592662,1765857142026,-2125.4,0.00015342,2]
[398592663,1765857142036,-6830.61,0.00015342,2]
[398592664,1765857142045,-500.0,0.00015342,2]
[398592665,1765857142054,-8377.94,0.00015342,2]
[398592666,1765857142065,-2121.87,0.00015342,2]
[398592667,1765857142076,-429.25604129,0.00015342,2]
[398592668,1765857142085,-858.84,0.00015342,2]
[398592669,1765857142095,-945.29,0.00015342,2]
[398592670,1765857142104,-1092.05,0.00015342,2]
[398592671,1765857142114,-580.26,0.00015342,2]
[398592672,1765857142124,-288.58414737,0.00015342,2]
[398592673,1765857142133,-2445.72,0.00015342,2]
[398592674,1765857142144,-3903.36,0.00015342,2]
[398592675,1765857142157,-537.08,0.00015342,2]
[398592676,1765857142167,-618.36,0.00015342,2]
[398592677,1765857142177,-4243.55,0.00015342,2]
[398592678,1765857142187,-1422.62,0.00015342,2]
[398592679,1765857142198,-800.38,0.00015342,2]
[398592680,1765857142208,-1202.09,0.00015342,2]
[398592681,1765857142218,-799.6,0.00015342,2]
[398592682,1765857142227,-520.25,0.00015342,2]
[398592683,1765857142238,-14584.18,0.00015342,2]
[398592684,1765857142248,-2341.35,0.00015342,2]
[398592685,1765857142258,-500.0,0.00015342,2]
[398592686,1765857142268,-614.63,0.00015342,2]
[398592687,1765857142280,-2042.99,0.00015342,2]
[398592688,1765857142471,-3921.7,0.00015342,2]
[398592689,1765857142481,-193.84269904,0.00015342,2]
[398592690,1765857142490,-2154.94,0.00015342,2]
[398592691,1765857142500,-1164.37,0.00015342,2]
[398592692,1765857142509,-1452.17,0.00015342,2]
[398592693,1765857142519,-3354.89,0.00015342,2]
[398592694,1765857142528,-211.12945355,0.00015342,2]
[398592695,1765857142537,-885.63,0.00015342,2]
[398592696,1765857142546,-583.17,0.00015342,2]
[398592697,1765857142556,-934.17,0.00015342,2]
[398592698,1765857142565,-500.0,0.00015342,2]
[398592699,1765857142575,-2662.12,0.00015342,2]
[398592700,1765857142584,-940.07,0.00015342,2]
[398592701,1765857142594,-2691.53,0.00015342,2]
[398592702,1765857142603,-500.0,0.00015342,2]
[398592703,1765857142613,-500.0,0.00015342,2]
[398592704,1765857142621,-1389.33,0.00015342,2]
[398592705,1765857142631,-947.29,0.00015342,2]
[398592706,1765857142640,-1434.18,0.00015342,2]
[398592707,1765857142649,-607.29,0.00015342,2]
[398592708,1765857142658,-500.0,0.00015342,2]
[398592709,1765857142667,-3493.92,0.00015342,2]
[398592710,1765857142677,-500.0,0.00015342,2]
[398592711,1765857142686,-1734.78,0.00015342,2]
[398592712,1765857142695,-529.53,0.00015342,2]
[398592713,1765857142704,-500.0,0.00015342,2]
[398592714,1765857142713,-1497.62,0.00015342,2]
[398592715,1765857142723,-1890.34,0.00015342,2]
[398592716,1765857142732,-1321.15,0.00015342,2]
[398592717,1765857142741,-627.84,0.00015342,2]
[398592718,1765857142750,-1724.14,0.00015342,2]
[398592719,1765857142759,-1136.33,0.00015342,2]
[398592720,1765857142769,-2584.7,0.00015342,2]
[398592721,1765857142778,-906.3,0.00015342,2]
[398592722,1765857142787,-523.47,0.00015342,2]
[398592723,1765857142796,-500.0,0.00015342,2]
[398592724,1765857142805,-1103.9,0.00015342,2]
[398592725,1765857142814,-860.33,0.00015342,2]
[398592726,1765857142823,-526.2,0.00015342,2]
[398592727,1765857142832,-625.36,0.00015342,2]
[398592728,1765857142841,-3387.17,0.00015342,2]
[398592729,1765857142851,-838.05,0.00015342,2]
[398592730,1765857142860,-717.42,0.00015342,2]
[398592731,1765857142870,-1435.24,0.00015342,2]
[398592732,1765857142879,-500.0,0.00015342,2]
[398592733,1765857142889,-11122.08,0.00015342,2]
[398592734,1765857142898,-645.68,0.00015342,2]
[398592735,1765857142907,-22080.53,0.00015342,2]
[398592736,1765857142917,-3719.53,0.00015342,2]
[398592737,1765857142926,-835.99,0.00015342,2]
[398592738,1765857142936,-1808.12,0.00015342,2]
[398592739,1765857142945,-461.75177542,0.00015342,2]
[398592740,1765857142954,-8246.11,0.00015342,2]
[398592741,1765857142964,-1665.52,0.00015342,2]
[398592742,1765857142973,-505.05,0.00015342,2]
[398592743,1765857142983,-5019.38,0.00015342,2]
[398592744,1765857142992,-980.38,0.00015342,2]
[398592745,1765857143002,-2863.98,0.00015342,2]
[398592746,1765857143012,-688.63,0.00015342,2]
[398592747,1765857143021,-2333.27,0.00015342,2]
[398592748,1765857143030,-884.98,0.00015342,2]
[398592749,1765857143041,-2011.13,0.00015342,2]
[398592750,1765857143050,-561.14,0.00015342,2]
[398592751,1765857143060,-5555.9,0.00015342,2]
[398592752,1765857143069,-1243.71,0.00015342,2]
[398592753,1765857143078,-1161.7,0.00015342,2]
[398592754,1765857143088,-35354.14,0.00015342,2]
[398592755,1765857143097,-9588.87,0.00015342,2]
[398592756,1765857143107,-1419.14,0.00015342,2]
[398592757,1765857143117,-1172.55,0.00015342,2]
[398592758,1765857143127,-500.0,0.00015342,2]
[398592759,1765857143137,-2089.03,0.00015342,2]
[398592760,1765857143147,-500.0,0.00015342,2]
[398592761,1765857143162,-3963.15,0.00015342,2]
[398592762,1765857143172,-2257.39,0.00015342,2]
[398592763,1765857143182,-1097.79,0.00015342,2]
[398592764,1765857143191,-1991.38,0.00015342,2]
[398592765,1765857143200,-841.22,0.00015342,2]
[398592766,1765857143209,-500.0,0.00015342,2]
[398592767,1765857143219,-294.12956589,0.00015342,2]
[398592768,1765857143229,-800.38,0.00015342,2]
[398592769,1765857143239,-1431.03,0.00015342,2]
[398592770,1765857143248,-8351.41,0.00015342,2]
[398592771,1765857143257,-1423.76,0.00015342,2]
[398592772,1765857143267,-896.79,0.00015342,2]
[398592773,1765857143277,-1140.27,0.00015342,2]
[398592774,1765857143286,-914.19,0.00015342,2]
[398592775,1765857143296,-500.0,0.00015342,2]
[398592776,1765857143305,-4075.24,0.00015342,2]
[398592777,1765857143315,-1445.43,0.00015342,2]
[398592778,1765857143325,-500.0,0.00015342,2]